bitfinex-derivatives/quotes_SOLF0:USTF0_20260105
["timestamp","ask_amount","ask_price","bid_price","bid_amount"]
[1767576327830,1.41763675,136.17,136.1,6.6155]
[1767576328429,86.78,136.18,136.1,6.6155]
[1767576329639,88.19763675,136.18,136.1,6.6155]
[1767576329842,88.19763675,136.18,136.08,6.6164]
[1767576329843,1.41763675,136.17,136.08,6.6164]
[1767576331034,1.41763675,136.17,136.09,6.616]
[1767576332542,1.41763675,136.17,136.1,6.6155]
[1767576333141,86.78,136.18,136.11,6.615]
[1767576333442,1.37182555,136.19,136.11,6.615]
[1767576335030,1.37182555,136.18,136.09,6.6159]
[1767576335230,1.37182555,136.18,136.08,102.9268]
[1767576336437,1.37182555,136.18,136.1,6.6155]
[1767576337642,1.40993008,136.17,136.07,105.26696369]
[1767576338537,1.40993008,136.17,136.09,6.616]
[1767576342946,1.40993008,136.17,136.11,6.615]
[1767576343150,1.40993008,136.19,136.11,6.615]
[1767576345052,1.40993008,136.18,136.09,6.6159]
[1767576345447,1.40993008,136.18,136.08,86.8]
[1767576346045,1.40993008,136.17,136.08,6.6163]
[1767576346246,1.40993008,136.17,136.07,189.7312]
[1767576347654,1.40993008,136.17,136.09,6.6161]
[1767576349051,1.40993008,136.15,136.07,6.6169]
[1767576350652,2.90345802,136.15,136.07,6.6169]
[1767576351158,1.40993008,136.14,136.07,6.6169]
[1767576351356,1.40993008,136.12,136.05,93.4178]
[1767576352047,1.40993008,136.12,136.06,6.6175]
[1767576353456,2.90345802,136.11,136.04,6.6184]
[1767576353760,2.90345802,136.09,136.01,337.19281159]
[1767576354461,1.49352794,136.09,136.01,338.68633953]
[1767576354651,2.90345802,136.11,136.01,338.68633953]
[1767576355146,1.40993008,136.11,136.01,338.68633953]
[1767576355346,1.40993008,136.11,136.04,6.6185]
[1767576356454,1.49352794,136.12,136.04,6.6185]
[1767576356657,2.90345802,136.12,136.04,6.6185]
[1767576357852,2.90345802,136.12,136.04,8.11202794]
[1767576358258,1.40993008,136.12,136.04,8.11202794]
[1767576358563,1.40993008,136.12,136.05,6.618]
[1767576358765,1.49352794,136.13,136.05,6.618]
[1767576359566,1.49352794,136.13,136.06,6.6175]
[1767576359766,1.49352794,136.13,136.06,93.4375]
[1767576360265,1.40993008,136.14,136.07,6.617]
[1767576360956,86.74,136.15,136.08,6.6165]
[1767576361162,8.08066984,136.16,136.08,6.6165]
[1767576361359,8.08066984,136.16,136.08,8.11002794]
[1767576361758,1.49352794,136.17,136.09,6.616]
[1767576362163,1.49352794,136.17,136.09,8.10952794]
[1767576362964,1.46766984,136.18,136.1,6.6155]
[1767576363160,1.46766984,136.18,136.11,1.49352794]
[1767576363668,2.96119778,136.21,136.12,6.6146]
[1767576364065,1.46766984,136.2,136.12,6.6146]
[1767576366761,1.46766984,136.2,136.13,1.49352794]
[1767576366962,1.46766984,136.2,136.13,8.10762794]
[1767576368173,1.46766984,136.2,136.13,6.6141]
[1767576369074,1.46766984,136.2,136.12,1.49352794]
[1767576369985,1.46766984,136.2,136.12,88.29352794]
[1767576370573,1.46766984,136.2,136.12,86.8]
[1767576370766,1.46766984,136.2,136.12,88.29352794]
[1767576370965,1.46766984,136.2,136.12,1.49352794]
[1767576371374,1.46766984,136.2,136.12,88.29352794]
[1767576371675,1.46766984,136.2,136.12,94.90802794]
[1767576371873,1.46766984,136.2,136.12,88.29352794]
[1767576372265,1.49352794,136.22,136.13,6.6141]
[1767576372462,88.22766984,136.23,136.14,1.49352794]
[1767576372673,88.22766984,136.23,136.13,102.889]
[1767576372974,88.22766984,136.23,136.16,1.49352794]
[1767576373765,1.46766984,136.23,136.16,1.49352794]
[1767576373965,8.10222794,136.25,136.16,1.49352794]
[1767576373966,1.46766984,136.25,136.16,1.49352794]
[1767576374175,1.46766984,136.25,136.18,1.49352794]
[1767576377079,1.46766984,136.25,136.17,86.8]
[1767576377677,1.46766984,136.25,136.18,1.49352794]
[1767576378571,1.46766984,136.25,136.18,8.10512794]
[1767576380774,8.07526984,136.27,136.18,8.10512794]
[1767576380980,1.46766984,136.27,136.2,1.49352794]
[1767576381169,88.18766984,136.29,136.22,1.49352794]
[1767576382866,6.6062,136.3,136.22,1.49352794]
[1767576383073,1.46766984,136.31,136.24,1.49352794]
[1767576383776,8.07336984,136.31,136.24,1.49352794]
[1767576383973,1.46766984,136.3,136.22,88.25352794]
[1767576384872,1.46766984,136.27,136.19,86.76]
[1767576385071,1.46766984,136.26,136.19,86.76]
[1767576385991,1.46766984,136.26,136.19,93.3711]
[1767576388385,1.46766984,136.26,136.19,86.76]
[1767576389784,1.46766984,136.26,136.17,8.10572794]
[1767576390579,1.49352794,136.27,136.19,8.10462794]
[1767576390981,1.49352794,136.27,136.19,6.6111]
[1767576391176,2.92997859,136.28,136.19,8.10462794]
[1767576391672,9.53717859,136.28,136.19,8.10462794]
[1767576392505,1.43645065,136.27,136.19,8.10462794]
[1767576393785,2.92997859,136.26,136.18,86.74]
[1767576393985,1.43645065,136.26,136.18,86.74]
[1767576396390,8.10112794,136.27,136.19,1.49352794]
[1767576398090,9.58753273,136.27,136.19,1.49352794]
[1767576398791,8.09400479,136.27,136.19,1.49352794]
[1767576400893,1.48640479,136.26,136.19,1.49352794]
[1767576401096,1.48640479,136.26,136.18,93.3515]
[1767576401394,2.97993273,136.22,136.12,1.49352794]
[1767576401586,1.49352794,136.2,136.12,1.49352794]
[1767576401792,2.97993273,136.2,136.11,86.74]
[1767576402791,2.97993273,136.2,136.12,6.6145]
[1767576403193,1.48640479,136.19,136.11,86.74]
[1767576404797,2.97993273,136.18,136.11,86.74]
[1767576405505,1.48640479,136.18,136.11,86.74]
[1767576406297,2.97993273,136.18,136.11,86.74]
[1767576406995,1.48640479,136.18,136.11,86.74]
[1767576410609,1.49352794,136.19,136.11,86.74]
[1767576412506,1.48640479,136.2,136.11,86.74]
[1767576414410,1.48640479,136.2,136.11,93.355]
[1767576414604,6.6106,136.21,136.11,86.74]
[1767576415510,1.48640479,136.22,136.12,2.33215338]
[1767576415906,102.8089,136.24,136.12,2.33215338]
[1767576415907,1.48640479,136.24,136.14,2.33215338]
[1767576416407,102.7724,136.29,136.18,2.33215338]
[1767576416408,1.48640479,136.29,136.18,2.33215338]
[1767576416609,1.48640479,136.29,136.18,89.11215338]
[1767576417209,1.48640479,136.29,136.2,2.33215338]
[1767576417713,1.48640479,136.29,136.2,8.94275338]
[1767576418917,94.81160479,136.32,136.22,2.33215338]
[1767576419513,1.48640479,136.31,136.22,2.33215338]
[1767576420419,1.48640479,136.3,136.22,2.33215338]
[1767576420812,88.19004436,136.32,136.22,8.94175338]
[1767576421523,88.19004436,136.32,136.23,6.6091]
[1767576424717,1.47004436,136.31,136.22,2.33215338]
[1767576425608,1.47004436,136.31,136.22,8.94175338]
[1767576429124,1.47004436,136.3,136.2,8.94275338]
[1767576429326,1.47004436,136.3,136.2,6.6106]
[1767576430623,1.47004436,136.29,136.2,6.6106]
[1767576430824,1.47004436,136.29,136.2,105.16735338]
[1767576431018,1.47004436,136.31,136.21,102.8282]
[1767576432715,1.47004436,136.31,136.22,6.6097]
[1767576433325,1.47004436,136.31,136.23,6.6092]
[1767576435429,8.07444436,136.34,136.25,6.6083]
[1767576435627,8.07444436,136.34,136.24,2.33215338]
[1767576435628,1.47004436,136.33,136.2,105.16735338]
[1767576435930,1.47004436,136.32,136.23,6.6092]
[1767576436428,1.47004436,136.32,136.24,6.6088]
[1767576436829,1.47004436,136.32,136.23,102.8132]
[1767576437129,1.47004436,136.32,136.25,6.6082]
[1767576437326,1.47004436,136.32,136.22,2.33215338]
[1767576438128,1.47004436,136.32,136.21,189.5449]
[1767576438338,1.47004436,136.31,136.2,2.33215338]
[1767576438534,1.47004436,136.31,136.19,86.72]
[1767576438827,1.47004436,136.31,136.17,6.6121]
[1767576438828,1.47004436,136.25,136.17,6.6121]
[1767576440625,10.40939774,136.28,136.18,6.6114]
[1767576441031,8.07724436,136.28,136.17,102.8579]
[1767576441831,1.47004436,136.27,136.19,6.6111]
[1767576444126,2.33215338,136.3,136.2,6.6106]
[1767576444127,1.47004436,136.29,136.2,6.6106]
[1767576445527,1.47004436,136.29,136.21,6.6101]
[1767576445935,1.47004436,136.29,136.2,86.72]
[1767576446130,1.47004436,136.29,136.22,6.6097]
[1767576446331,1.47004436,136.29,136.2,86.72]
[1767576447634,8.07674436,136.29,136.2,93.3308]
[1767576447828,1.47004436,136.28,136.2,93.3308]
[1767576448030,1.47004436,136.27,136.17,86.72]
[1767576449030,1.47004436,136.27,136.19,6.6112]
[1767576454140,6.6072,136.28,136.19,6.6112]
[1767576454340,8.02756595,136.28,136.19,6.6112]
[1767576455343,1.42036595,136.28,136.21,6.6102]
[1767576456137,1.38776503,136.27,136.18,6.6114]
[1767576456543,1.38776503,136.27,136.17,86.72]
[1767576457142,1.38776503,136.26,136.19,6.6112]
[1767576458040,1.38776503,136.26,136.17,95.66415338]
[1767576458347,1.38776503,136.26,136.17,89.05215338]
[1767576458939,1.38776503,136.26,136.17,86.72]
[1767576459646,1.38776503,136.26,136.18,6.6117]
[1767576460056,1.38776503,136.21,136.13,13.19952802]
[1767576460244,1.38776503,136.21,136.1,20.11729146]
[1767576460245,1.38776503,136.21,136.11,102.9039]
[1767576460447,1.38776503,136.21,136.11,202.84342802]
[1767576461050,1.38776503,136.21,136.13,6.614]
[1767576463348,88.06776503,136.26,136.14,105.21315338]
[1767576463547,1.38776503,136.25,136.16,0.04960046]
[1767576463943,1.38776503,136.25,136.14,2.33215338]
[1767576464448,1.38776503,136.25,136.13,102.8863]
[1767576464748,6.6091,136.24,136.18,0.05282997]
[1767576466455,1.38776503,136.25,136.18,0.05282997]
[1767576466954,88.08776503,136.27,136.18,0.05282997]
[1767576467452,88.08776503,136.27,136.19,6.6112]
[1767576467654,88.08776503,136.27,136.18,102.85]
[1767576467843,88.08776503,136.27,136.21,0.04716438]
[1767576472653,1.38776503,136.26,136.21,0.04716438]
[1767576480770,1.38776503,136.26,136.21,6.65736438]
[1767576484773,1.41920246,136.28,136.21,6.65736438]
[1767576486073,1.41920246,136.28,136.22,6.6097]
[1767576492880,1.41920246,136.3,136.23,6.6092]
[1767576493778,1.41920246,136.3,136.25,0.05088227]
[1767576493986,1.41920246,136.27,136.21,6.6102]
[1767576494782,1.41920246,136.27,136.19,8.10164403]
[1767576495278,1.41920246,136.27,136.2,6.6107]
[1767576499282,2.90984649,136.29,136.21,6.6101]
[1767576499482,2.90984649,136.29,136.21,8.10074403]
[1767576501278,1.41920246,136.29,136.22,6.6097]
[1767576501578,1.41920246,136.32,136.23,1.49064403]
[1767576502082,1.41920246,136.32,136.24,6.6086]
[1767576502878,0.05611808,136.29,136.24,6.6086]
[1767576503075,0.05611808,136.29,136.24,8.09924403]
[1767576503270,0.05611808,136.29,136.27,0.05592123]
[1767576504682,0.05611808,136.29,136.24,8.09924403]
[1767576504683,0.05611808,136.29,136.22,8.10024403]
[1767576505982,1.47532054,136.29,136.22,6.6096]
[1767576506781,2.96596457,136.29,136.22,6.6096]
[1767576506977,1.47532054,136.29,136.22,6.6096]
[1767576507176,1.47532054,136.29,136.23,6.6092]
[1767576508484,1.47532054,136.29,136.22,1.49064403]
[1767576510483,0.05611808,136.29,136.22,8.10044403]
[1767576510685,1.54521649,136.29,136.22,8.10044403]
[1767576511077,1.54521649,136.29,136.22,6.6098]
[1767576511277,1.48909841,136.28,136.2,108.02067205]
[1767576511481,1.48909841,136.28,136.2,8.10114403]
[1767576512182,0.04760302,136.25,136.2,8.10114403]
[1767576512488,4.317e-05,136.25,136.2,8.10114403]
[1767576512786,4.317e-05,136.25,136.21,6.6102]
[1767576513189,4.317e-05,136.25,136.21,8.10084403]
[1767576513987,4.317e-05,136.25,136.22,6.6096]
[1767576521588,4.317e-05,136.25,136.23,6.6093]
[1767576522292,1.4480711,136.29,136.23,6.6093]
[1767576527393,8.0537711,136.31,136.23,6.6093]
[1767576527597,1.4480711,136.31,136.21,14.69017205]
[1767576527800,1.49064403,136.3,136.21,14.69017205]
[1767576528100,2.93871513,136.3,136.21,14.69017205]
[1767576528298,1.4480711,136.3,136.21,14.69017205]
[1767576528499,2.93871513,136.3,136.21,14.69017205]
[1767576528700,1.4480711,136.29,136.22,6.6095]
[1767576532405,1.4480711,136.29,136.23,6.6092]
[1767576533899,88.15064403,136.32,136.24,6.6087]
[1767576534108,1.4480711,136.31,136.24,6.6087]
[1767576535004,1.4480711,136.31,136.25,6.6082]
[1767576536402,88.1080711,136.32,136.25,6.6082]
[1767576537211,0.04886458,136.3,136.25,6.6082]
[1767576540305,1.49693568,136.3,136.23,6.6093]
[1767576541817,1.49693568,136.3,136.21,102.27831645]
[1767576542105,1.49693568,136.3,136.21,93.3301]
[1767576542311,1.39542309,136.29,136.21,93.3301]
[1767576542905,1.39542309,136.29,136.21,6.6101]
[1767576545212,1.39542309,136.28,136.21,6.6101]
[1767576545409,1.39542309,136.28,136.19,15.55931645]
[1767576545606,1.39542309,136.26,136.19,15.55931645]
[1767576545807,1.39542309,136.26,136.19,6.6111]
[1767576546613,1.39542309,136.26,136.2,6.6106]
[1767576548925,1.39542309,136.26,136.18,6.6115]
[1767576549413,2.32781594,136.25,136.16,15.56071645]
[1767576549619,2.32781594,136.25,136.16,6.6125]
[1767576549620,1.39542309,136.24,136.16,6.6125]
[1767576550117,1.39542309,136.24,136.17,6.6122]
[1767576552325,1.39542309,136.26,136.18,102.8512]
[1767576553622,1.39542309,136.26,136.2,6.6107]
[1767576555624,1.39542309,136.26,136.18,6.6115]
[1767576556630,1.39542309,136.26,136.18,15.55971645]
[1767576560232,6.6071,136.28,136.19,6.6111]
[1767576560439,8.00252309,136.28,136.19,6.6111]
[1767576560627,1.39542309,136.27,136.19,6.6111]
[1767576562840,1.39542309,136.27,136.2,6.6107]
[1767576564035,1.39542309,136.27,136.18,6.6116]
[1767576565035,1.39542309,136.25,136.18,6.6116]
[1767576569734,1.39542309,136.27,136.17,105.18351594]
[1767576571646,1.39542309,136.27,136.19,6.6112]
[1767576572645,1.39542309,136.27,136.2,6.6106]
[1767576574648,1.46531374,136.29,136.21,6.6101]
[1767576575451,1.46531374,136.29,136.22,6.6096]
[1767576580155,1.46531374,136.29,136.19,105.16781594]
[1767576580353,1.39024731,136.26,136.17,1.52127336]
[1767576580554,3.71806325,136.25,136.17,1.52127336]
[1767576580756,1.39024731,136.25,136.19,1.52127336]
[1767576580949,1.39024731,136.27,136.19,1.52127336]
[1767576581654,1.39024731,136.27,136.2,1.52127336]
[1767576584658,88.07024731,136.29,136.21,1.52127336]
[1767576586252,1.39024731,136.28,136.21,1.52127336]
[1767576586962,6.605,136.33,136.23,6.6092]
[1767576587159,1.39024731,136.32,136.24,1.47841144]
[1767576588362,1.39024731,136.32,136.27,0.0504547]
[1767576600473,87.28691657,136.34,136.27,6.6576547]
[1767576600663,1.48935568,136.38,136.28,104.26215568]
[1767576600872,0.60691657,136.38,136.3,1.48935568]
[1767576601064,0.60691657,136.36,136.27,1.53981038]
[1767576601266,0.60691657,136.34,136.27,1.48935568]
[1767576601573,0.60691657,136.32,136.26,6.6077]
[1767576601773,0.60691657,136.32,136.24,86.72]
[1767576601973,0.60691657,136.3,136.22,104.30685568]
[1767576602177,0.60691657,136.32,136.25,6.6081]
[1767576602376,0.60691657,136.32,136.24,104.29195568]
[1767576602687,0.60691657,136.32,136.26,6.6075]
[1767576604577,0.60691657,136.34,136.26,104.27595568]
[1767576604965,2.09627225,136.36,136.28,102.7745]
[1767576605276,0.60691657,136.36,136.28,104.26385568]
[1767576605573,87.26691657,136.38,136.3,6.6057]
[1767576605773,87.26691657,136.38,136.3,8.09505568]
[1767576605980,0.60691657,136.37,136.3,8.09505568]
[1767576606278,0.60691657,136.36,136.28,6.6067]
[1767576606475,87.26691657,136.38,136.29,1.48935568]
[1767576606675,0.60691657,136.37,136.29,1.48935568]
[1767576606978,0.60691657,136.37,136.3,6.6057]
[1767576609067,0.60691657,136.37,136.28,8.09605568]
[1767576609271,2.09627225,136.37,136.28,8.09605568]
[1767576609771,0.60691657,136.36,136.31,0.05243766]
[1767576610083,0.04796281,136.34,136.31,0.05243766]
[1767576611374,0.02259992,136.34,136.31,0.05243766]
[1767576613174,0.60691657,136.39,136.32,6.6048]
[1767576614470,0.60691657,136.39,136.34,0.04911842]
[1767576615975,0.60691657,136.41,136.34,0.04911842]
[1767576616479,0.60691657,136.4,136.34,0.04911842]
[1767576617381,0.60691657,136.4,136.34,6.65291842]
[1767576617680,0.60691657,136.4,136.34,0.04911842]
[1767576618271,0.60691657,136.4,136.35,6.6034]
[1767576620676,2.09627225,136.39,136.34,0.04911842]
[1767576620883,0.60691657,136.38,136.34,0.04911842]
[1767576621284,2.09627225,136.37,136.29,86.68]
[1767576621780,0.60691657,136.4,136.32,102.744]
[1767576621979,0.60691657,136.4,136.32,104.23335568]
[1767576622386,88.10935568,136.41,136.35,6.6033]
[1767576622578,86.62,136.41,136.35,6.6033]
[1767576623487,0.60691657,136.42,136.36,6.6028]
[1767576624590,0.60691657,136.46,136.36,104.20425568]
[1767576624786,2.09627225,136.46,136.36,102.7149]
[1767576624988,0.60691657,136.45,136.4,0.05363902]
[1767576626285,1.48935568,136.44,136.4,0.05363902]
[1767576626892,0.60691657,136.45,136.4,0.05363902]
[1767576627191,0.60691657,136.5,136.41,1.48935568]
[1767576627489,0.60691657,136.5,136.4,86.71363902]
[1767576627490,0.60691657,136.45,136.4,0.05363902]
[1767576627786,0.60691657,136.45,136.37,6.6024]
[1767576627988,0.60691657,136.45,136.36,189.3725]
[1767576628190,2.09627225,136.45,136.41,0.05134929]
[1767576628688,2.09627225,136.43,136.36,6.6029]
[1767576628986,2.09627225,136.43,136.36,93.2629]
[1767576629182,1.48935568,136.39,136.28,102.7706]
[1767576629388,1.48935568,136.35,136.26,102.7876]
[1767576629589,1.48935568,136.35,136.27,102.7819]
[1767576629786,2.09627225,136.36,136.27,102.7819]
[1767576630181,0.60691657,136.38,136.28,6.6067]
[1767576630385,1.82788043,136.37,136.28,104.26435568]
[1767576630581,102.6789,136.41,136.27,102.7797]
[1767576630582,0.04767267,136.33,136.27,102.7797]
[1767576630788,0.04767267,136.33,136.27,189.4197]
[1767576630988,1.53702835,136.33,136.27,86.64]
[1767576631294,0.33852475,136.32,136.24,1.48935568]
[1767576631490,1.82788043,136.31,136.23,86.64]
[1767576632100,0.33852475,136.31,136.23,196.0609]
[1767576632303,0.33852475,136.33,136.24,1.48935568]
[1767576633491,1.82788043,136.33,136.24,1.48935568]
[1767576634098,1.82788043,136.33,136.24,8.09785568]
[1767576634298,1.82788043,136.33,136.24,110.90225568]
[1767576634604,0.33852475,136.33,136.24,110.90225568]
[1767576635491,0.33852475,136.36,136.28,1.48935568]
[1767576636001,1.82788043,136.36,136.27,86.66]
[1767576636198,0.33852475,136.36,136.28,1.48935568]
[1767576637089,0.33852475,136.36,136.28,88.14935568]
[1767576638199,0.32768804,136.39,136.28,197.53115568]
[1767576638498,86.62,136.4,136.32,1.48935568]
[1767576638699,102.642,136.46,136.32,1.48935568]
[1767576638700,0.32768804,136.44,136.33,189.4168]
[1767576638893,0.32768804,136.44,136.36,1.48935568]
[1767576639501,0.32768804,136.43,136.34,6.6036]
[1767576639704,0.32768804,136.43,136.34,8.09295568]
[1767576640198,0.32768804,136.43,136.34,94.77295568]
[1767576640397,0.32768804,136.43,136.34,8.09295568]
[1767576640599,0.32768804,136.43,136.34,93.2836]
[1767576641202,0.32768804,136.43,136.33,102.7351]
[1767576641203,0.32768804,136.43,136.31,6.6051]
[1767576641500,0.32768804,136.41,136.31,6.6051]
[1767576642103,102.6779,136.41,136.26,102.7863]
[1767576642399,0.32768804,136.39,136.27,86.66]
[1767576642790,0.32768804,136.39,136.27,6.6073]
[1767576642994,0.32768804,136.37,136.27,6.6073]
[1767576643397,0.32768804,136.37,136.26,86.66]
[1767576643706,0.32768804,136.35,136.26,86.66]
[1767576644101,0.32768804,136.35,136.25,6.6083]
[1767576644304,0.32768804,136.35,136.23,93.2692]
[1767576644305,0.32768804,136.34,136.23,93.2692]
[1767576645497,0.32768804,136.34,136.23,6.6092]
[1767576645804,0.32768804,136.33,136.21,6.6102]
[1767576646104,0.32768804,136.32,136.2,86.66]
[1767576646405,0.32768804,136.3,136.2,86.66]
[1767576646600,0.32768804,136.3,136.19,6.6111]
[1767576646601,0.32768804,136.29,136.19,6.6111]
[1767576647405,0.32768804,136.28,136.17,93.2722]
[1767576647610,0.32768804,136.28,136.17,86.66]
[1767576648102,0.32768804,136.27,136.17,86.66]
[1767576648805,0.32768804,136.27,136.16,270.20696435]
[1767576649008,0.32768804,136.26,136.16,17.63878806]
[1767576649493,0.32768804,136.26,136.15,102.8696]
[1767576649896,0.32768804,136.26,136.16,6.6124]
[1767576650096,0.32768804,136.26,136.14,189.5587]
[1767576650493,0.32768804,136.26,136.14,93.2937]
[1767576650706,0.32768804,136.26,136.14,196.1752]
[1767576652404,0.32768804,136.26,136.15,6.6128]
[1767576653416,0.32768804,136.24,136.13,6.6141]
[1767576653615,0.32768804,136.23,136.13,6.6141]
[1767576653805,0.38421106,136.22,136.13,6.6141]
[1767576654202,0.32768804,136.22,136.13,6.6141]
[1767576656211,86.66,136.24,136.14,109.4942]
[1767576656402,0.32768804,136.23,136.14,109.4942]
[1767576656604,0.32768804,136.23,136.14,6.6133]
[1767576657013,0.32768804,136.23,136.12,113.16012833]
[1767576657206,0.32768804,136.23,136.12,199.88012833]
[1767576657712,0.32768804,136.23,136.12,93.3346]
[1767576658306,0.32768804,136.23,136.13,6.6139]
[1767576659207,0.32768804,136.28,136.16,102.8623]
[1767576659510,0.32768804,136.28,136.17,86.74]
[1767576659816,0.32768804,136.28,136.17,196.2107]
[1767576660206,0.32768804,136.31,136.19,102.8391]
[1767576660516,0.32768804,136.31,136.2,102.8352]
[1767576660711,0.050686,136.26,136.21,102.8285]
[1767576661316,0.32768804,136.31,136.21,189.5685]
[1767576661507,0.32768804,136.31,136.22,0.0503468]
[1767576661815,0.32768804,136.31,136.22,102.8705468]
[1767576662022,0.32768804,136.31,136.22,102.8202]
[1767576662617,0.32768804,136.31,136.25,0.05564278]
[1767576662814,86.68,136.33,136.25,0.05564278]
[1767576663015,0.32685788,136.32,136.25,0.05564278]
[1767576663417,86.68,136.33,136.25,0.05564278]
[1767576664719,87.00685788,136.33,136.25,0.05564278]
[1767576664924,0.32685788,136.32,136.25,0.05564278]
[1767576668622,86.68,136.33,136.25,102.85384278]
[1767576669013,0.32685788,136.38,136.28,102.7737]
[1767576669420,0.32685788,136.38,136.27,102.7797]
[1767576669620,0.32685788,136.38,136.29,6.6061]
[1767576669821,0.32685788,136.38,136.29,102.768]
[1767576670011,86.68,136.4,136.31,0.05121967]
[1767576670209,86.68,136.4,136.32,6.6048]
[1767576670824,86.68,136.4,136.35,0.05061447]
[1767576671624,87.00685788,136.4,136.35,0.05061447]
[1767576672318,86.68,136.4,136.35,0.05061447]
[1767576672718,0.32685788,136.43,136.35,0.05061447]
[1767576673321,0.32685788,136.41,136.29,5.95289462]
[1767576673523,0.32685788,136.41,136.29,92.65289462]
[1767576673711,0.32685788,136.41,136.29,86.7]
[1767576674617,0.32685788,136.4,136.3,6.6057]
[1767576677633,0.32685788,136.39,136.28,6.6067]
[1767576677930,0.32685788,136.39,136.28,86.68]
[1767576678127,0.32685788,136.39,136.3,6.6058]
[1767576678325,0.32685788,136.39,136.29,102.7681]
[1767576678830,0.32685788,136.39,136.29,6.6064]
[1767576680032,0.32685788,136.38,136.28,86.68]
[1767576680418,0.32685788,136.38,136.27,6.6072]
[1767576680620,0.32685788,136.38,136.28,6.6067]
[1767576682236,0.32685788,136.38,136.26,189.4673]
[1767576682237,0.32685788,136.35,136.2,354.04804877]
[1767576682524,0.32685788,136.35,136.21,86.68]
[1767576682730,0.32685788,136.33,136.21,86.68]
[1767576683633,6.93175788,136.33,136.22,6.6098]
[1767576684634,0.32685788,136.31,136.22,6.6098]
[1767576685633,6.93265788,136.31,136.22,6.6098]
[1767576686126,0.32685788,136.3,136.2,6.6108]
[1767576686921,0.32685788,136.3,136.21,6.61]
[1767576688731,0.32685788,136.32,136.21,102.8239]
[1767576689524,86.64,136.33,136.23,102.8116]
[1767576689930,86.64,136.33,136.27,0.05455411]
[1767576692937,0.32629454,136.32,136.27,0.05455411]
[1767576693734,0.32629454,136.32,136.23,6.6091]
[1767576694238,0.32629454,136.32,136.21,6.6101]
[1767576694437,0.32629454,136.31,136.19,86.68]
[1767576695540,0.32629454,136.31,136.22,6.6095]
[1767576698839,0.32629454,136.31,136.17,102.8557]
[1767576698840,0.33698942,136.3,136.17,102.8557]
[1767576699247,0.33698942,136.27,136.18,6.6116]
[1767576699435,0.33698942,136.26,136.18,6.6116]
[1767576700945,0.33698942,136.26,136.13,102.8863]
[1767576702042,0.33698942,136.24,136.14,102.8799]
[1767576702434,93.2678,136.27,136.17,6.6121]
[1767576702632,86.99698942,136.27,136.17,6.6121]
[1767576702938,0.33698942,136.26,136.17,6.6121]
[1767576703139,0.33698942,136.26,136.17,102.8542]
[1767576704549,0.33698942,136.26,136.19,6.6109]
[1767576705847,0.33698942,136.26,136.17,6.6121]
[1767576706349,0.33698942,136.26,136.16,102.8652]
[1767576707555,0.33698942,136.26,136.18,6.6116]
[1767576707750,0.33698942,136.26,136.16,102.8655]
[1767576708045,93.2679,136.27,136.18,102.8509]
[1767576708046,86.66,136.27,136.18,102.8509]
[1767576708647,86.66,136.27,136.19,102.841]
[1767576708854,0.33698942,136.29,136.2,102.836]
[1767576709047,0.33698942,136.29,136.21,0.04991097]
[1767576713353,0.33698942,136.28,136.21,0.04991097]
[1767576713850,0.38494804,136.26,136.15,102.8736]
[1767576714046,0.33698942,136.25,136.15,102.8736]
[1767576714753,0.33698942,136.25,136.16,6.6126]
[1767576716054,0.33698942,136.22,136.11,102.901]
[1767576717454,0.33698942,136.22,136.13,6.6141]
[1767576717644,0.33698942,136.22,136.09,102.9159]
[1767576717851,0.33698942,136.21,136.08,102.9249]
[1767576718155,0.33698942,136.19,136.08,102.9249]
[1767576719259,0.33698942,136.18,136.08,6.6164]
[1767576719647,6.6117,136.19,136.07,86.74]
[1767576719845,0.33698942,136.21,136.09,3.6652782]
[1767576720142,0.33698942,136.2,136.11,0.05626621]
[1767576720542,0.33698942,136.2,136.08,102.9255]
[1767576720748,86.7,136.22,136.11,102.9038]
[1767576721257,0.31332352,136.21,136.13,0.0488177]
[1767576721759,0.31332352,136.21,136.09,86.76]
[1767576721760,0.31332352,136.2,136.09,189.6762]
[1767576721965,86.7,136.22,136.16,0.05503782]
[1767576722562,86.7,136.22,136.11,102.9012]
[1767576722856,87.01332352,136.22,136.11,102.9012]
[1767576723061,0.31332352,136.21,136.09,106.5814782]
[1767576723249,0.31332352,136.21,136.09,193.3414782]
[1767576723453,0.31332352,136.21,136.1,102.9082]
[1767576724755,0.31332352,136.21,136.12,6.6144]
[1767576726158,0.31332352,136.21,136.13,6.614]